bitfinex-derivatives/quotes_SOLF0:USTF0_20250625
["timestamp","ask_amount","ask_price","bid_price","bid_amount"]
[1750813099549,632.00900716,146.08,146.01,3.36900716]
[1750813099733,6.8431,146.06,146.03,6.8441]
[1750813103040,6.8427,146.07,146.04,6.8438]
[1750813103743,6.8432,146.06,146.03,6.8441]
[1750813105249,6.8427,146.07,146.04,6.8438]
[1750813105740,632.00900716,146.08,146.04,6.8438]
[1750813105951,37.44,146.08,146.02,3.36900716]
[1750813106336,44.282,146.08,146.05,6.8431]
[1750813106734,37.44,146.08,146.05,6.8431]
[1750813107044,44.2823,146.08,146.05,6.8431]
[1750813108640,37.44,146.08,146.02,3.36900716]
[1750813109034,6.8432,146.06,146.02,3.36900716]
[1750813109238,37.44,146.08,146.01,12.71214643]
[1750813109442,37.44,146.08,146.0,16.08115359]
[1750813110150,6.8432,146.06,146.03,6.8441]
[1750813110848,6.8426,146.07,146.0,16.08115359]
[1750813111046,6.8426,146.07,146.01,12.71214643]
[1750813111354,6.8426,146.07,146.02,3.36900716]
[1750813112443,6.8426,146.07,146.04,6.8436]
[1750813113753,6.842,146.09,146.02,16.08115359]
[1750813113944,38.8985,146.11,146.05,3.36900716]
[1750813114443,45.7394,146.11,146.07,6.8422]
[1750813114748,49.93425322,146.11,146.07,6.8422]
[1750813114952,45.7394,146.11,146.07,6.8422]
[1750813115260,6.8412,146.1,146.07,6.8422]
[1750813118354,45.7392,146.11,146.07,6.8422]
[1750813119058,45.7394,146.11,146.07,6.8422]
[1750813120349,6.8412,146.1,146.07,6.8422]
[1750813120659,38.8985,146.11,146.06,6.8429]
[1750813121951,6.8413,146.1,146.06,6.8429]
[1750813122352,6.8415,146.1,146.06,6.8429]
[1750813123552,45.7393,146.11,146.04,3.36900716]
[1750813124053,38.8985,146.11,146.08,6.8419]
[1750813124249,45.7393,146.11,146.08,6.8419]
[1750813125562,6.8411,146.1,146.07,6.8423]
[1750813125961,6.8416,146.09,146.06,6.8427]
[1750813127856,6.8413,146.1,146.06,6.8427]
[1750813128066,6.8413,146.1,146.07,6.8424]
[1750813129161,49.10840716,146.11,146.07,6.8421]
[1750813129664,45.7394,146.11,146.04,16.13766828]
[1750813130168,6.8411,146.1,146.04,16.13766828]
[1750813131159,6.8411,146.1,146.08,6.8419]
[1750813132175,6.8411,146.1,146.07,6.8422]
[1750813134370,45.7393,146.11,146.08,6.842]
[1750813138476,45.7393,146.11,146.07,6.8423]
[1750813138775,38.8985,146.11,146.07,6.8423]
[1750813139383,6.8411,146.1,146.07,6.8423]
[1750813141475,38.8985,146.11,146.05,6.8433]
[1750813141779,3.36900716,146.09,146.03,12.76866112]
[1750813142079,3.36900716,146.09,146.02,16.13766828]
[1750813142773,6.8427,146.07,146.04,6.8436]
[1750813143881,3.36900716,146.05,146.02,12.76866112]
[1750813144085,3.36900716,146.03,145.98,12.76866112]
[1750813144381,3.36900716,146.03,145.97,12.76866112]
[1750813144783,39.58900716,146.03,145.97,12.76866112]
[1750813144980,36.22,146.03,145.97,12.76866112]
[1750813145176,36.22,146.03,145.98,12.76866112]
[1750813145378,36.22,146.03,145.99,6.846]
[1750813145582,41.84240716,146.06,145.98,16.13766828]
[1750813146286,36.24,146.06,146.0,3.36900716]
[1750813146888,36.24,146.06,146.02,3.36900716]
[1750813147076,3.36900716,146.09,146.02,3.36900716]
[1750813147282,6.8429,146.07,146.04,6.8438]
[1750813148184,6.843,146.06,146.04,6.8438]
[1750813149389,6.843,146.06,146.03,6.8441]
[1750813149779,6.8435,146.05,146.03,6.8441]
[1750813150592,6.8435,146.05,146.02,6.8446]
[1750813150785,3.36900716,146.07,146.01,12.76866112]
[1750813151088,3.36900716,146.07,146.02,6.8446]
[1750813151587,6.8432,146.06,146.02,6.8446]
[1750813151787,3.36900716,146.07,146.02,6.8446]
[1750813152588,6.8437,146.05,146.02,6.8446]
[1750813153087,7.5924285,146.07,146.02,6.8446]
[1750813153289,6.8432,146.06,146.02,6.8446]
[1750813153681,11.06576122,146.07,146.0,36.24]
[1750813153882,10.21180716,146.07,146.0,36.24]
[1750813154281,10.21180716,146.07,146.0,49.00866112]
[1750813154592,6.8428,146.07,146.0,49.00866112]
[1750813154790,10.21180716,146.07,146.0,36.24]
[1750813155288,6.8428,146.07,146.03,6.8439]
[1750813155483,10.21180716,146.07,146.0,36.24]
[1750813155684,10.21180716,146.07,146.0,49.00866112]
[1750813156190,10.21180716,146.07,146.04,6.8438]
[1750813156692,6.8428,146.07,146.04,6.8438]
[1750813156884,6.8423,146.08,146.05,6.8434]
[1750813158091,45.4252,146.09,146.03,3.36900716]
[1750813158291,36.24,146.09,146.03,3.36900716]
[1750813158893,36.24,146.09,146.06,6.8427]
[1750813159192,43.0818,146.09,146.06,6.8427]
[1750813159495,43.0818,146.09,146.05,6.8432]
[1750813159692,36.24,146.09,146.03,3.36900716]
[1750813159890,6.8413,146.1,146.03,3.36900716]
[1750813159891,6.8413,146.1,146.03,16.13766828]
[1750813160396,6.8413,146.1,146.07,6.8423]
[1750813162195,10.20980716,146.11,146.08,6.842]
[1750813162393,36.24,146.12,146.08,6.842]
[1750813162590,36.24,146.12,146.05,3.36900716]
[1750813162894,36.24,146.14,146.07,3.36900716]
[1750813163300,6.8399,146.13,146.07,3.36900716]
[1750813163888,6.8399,146.13,146.06,12.76866112]
[1750813164092,6.8399,146.13,146.11,6.8406]
[1750813164695,6.8399,146.13,146.1,6.8409]
[1750813165197,36.24,146.14,146.07,3.36900716]
[1750813165198,43.0794,146.14,146.11,6.8405]
[1750813165399,36.24,146.14,146.07,3.36900716]
[1750813166402,6.8399,146.13,146.1,6.8409]
[1750813168492,43.0794,146.14,146.11,6.8406]
[1750813168991,36.24,146.14,146.11,6.8406]
[1750813169395,36.24,146.14,146.12,6.8401]
[1750813169595,36.24,146.14,146.08,36.24]
[1750813170198,43.0793,146.14,146.08,36.24]
[1750813170398,43.0793,146.14,146.11,6.8404]
[1750813172603,36.24,146.14,146.12,6.8398]
[1750813172809,39.56900716,146.17,146.08,36.24]
[1750813173012,3.36900716,146.15,146.08,39.60900716]
[1750813173507,6.8392,146.14,146.11,6.8403]
[1750813173709,3.36900716,146.15,146.08,36.24]
[1750813173897,36.2,146.17,146.09,6.8413]
[1750813174103,3.36900716,146.13,146.05,53.46406112]
[1750813174304,3.36900716,146.11,146.05,53.46406112]
[1750813174510,10.20990716,146.11,146.05,40.6954]
[1750813175096,36.2,146.13,146.04,12.76866112]
[1750813175097,3.36900716,146.09,146.04,12.76866112]
[1750813175308,3.36900716,146.09,146.02,48.96866112]
[1750813175509,39.54900716,146.09,146.04,6.8436]
[1750813175713,39.54900716,146.09,146.02,48.96866112]
[1750813176706,6.8421,146.08,146.05,6.8432]
[1750813177509,36.18,146.09,146.02,48.96866112]
[1750813178012,6.8425,146.07,146.04,6.8436]
[1750813178313,3.36900716,146.08,146.02,36.2]
[1750813178707,6.8427,146.07,146.02,36.2]
[1750813179208,6.8427,146.07,146.04,6.8438]
[1750813183617,6.8427,146.07,146.05,6.8434]
[1750813183817,3.36900716,146.08,146.02,36.2]
[1750813184514,6.8425,146.07,146.04,6.8436]
[1750813185422,36.18,146.09,146.03,3.36900716]
[1750813185719,36.18,146.09,146.05,3.36900716]
[1750813185925,36.18,146.09,146.07,6.8421]
[1750813186129,6.8413,146.1,146.07,6.8421]
[1750813186318,39.56900716,146.12,146.07,6.8421]
[1750813186519,6.8417,146.09,146.07,6.8421]
[1750813186722,44.40278352,146.12,146.06,6.8427]
[1750813187027,6.8418,146.09,146.06,6.8427]
[1750813187719,3.36900716,146.1,146.07,6.8424]
[1750813187928,6.8413,146.1,146.07,6.8424]
[1750813188125,44.40278352,146.12,146.05,3.36900716]
[1750813188327,44.40278352,146.12,146.08,6.8417]
[1750813188328,39.56900716,146.12,146.08,6.8417]
[1750813188626,39.56900716,146.12,146.05,3.36900716]
[1750813188826,44.40278352,146.12,146.05,3.36900716]
[1750813189131,6.8407,146.11,146.05,3.36900716]
[1750813189421,6.8407,146.11,146.08,6.8417]
[1750813194231,46.40940716,146.12,146.09,6.8413]
[1750813194530,46.40940716,146.12,146.05,3.36900716]
[1750813194828,46.40940716,146.12,146.08,6.8417]
[1750813195231,51.25980448,146.12,146.08,6.8417]
[1750813195419,51.25980448,146.12,146.05,3.36900716]
[1750813195420,6.8408,146.11,146.07,6.8423]
[1750813195620,39.56900716,146.12,146.07,6.8423]
[1750813196518,6.8413,146.1,146.07,6.8423]
[1750813200327,3.36900716,146.1,146.03,16.13766828]
[1750813200524,3.36900716,146.1,146.02,52.33766828]
[1750813200725,3.36900716,146.1,146.02,39.56900716]
[1750813200929,6.8422,146.08,146.04,6.8436]
[1750813201116,6.8422,146.08,146.02,36.2]
[1750813201117,36.18,146.08,146.02,36.2]
[1750813201323,36.18,146.08,146.02,39.56900716]
[1750813202030,43.0224,146.08,146.02,39.56900716]
[1750813202622,36.18,146.08,146.02,39.56900716]
[1750813202828,36.18,146.08,146.02,52.33766828]
[1750813203230,36.18,146.08,146.06,6.8427]
[1750813203424,3.36900716,146.11,146.04,3.36900716]
[1750813203425,4.84148303,146.1,146.04,3.36900716]
[1750813203623,39.54900716,146.11,146.04,3.36900716]
[1750813203828,39.54900716,146.11,146.07,6.8422]
[1750813203829,4.84038924,146.1,146.07,6.8422]
[1750813204028,39.54900716,146.11,146.04,3.36900716]
[1750813204331,6.8413,146.1,146.08,6.8417]
[1750813204532,36.18,146.11,146.06,3.36900716]
[1750813205030,43.0206,146.11,146.06,3.36900716]
[1750813205533,36.18,146.11,146.06,3.36900716]
[1750813206232,36.18,146.11,146.09,6.8411]
[1750813206433,36.18,146.11,146.06,3.36900716]
[1750813206736,4.84793071,146.13,146.06,39.54900716]
[1750813206927,6.8405,146.12,146.06,39.54900716]
[1750813207430,6.8405,146.12,146.1,6.841]
[1750813208437,6.8405,146.12,146.06,39.54900716]
[1750813208438,6.8405,146.12,146.09,6.8413]
[1750813208931,10.29290716,146.14,146.07,3.36900716]
[1750813209135,4.85978807,146.13,146.07,3.36900716]
[1750813209435,6.8399,146.13,146.07,3.36900716]
[1750813209737,10.29290716,146.14,146.07,3.36900716]
[1750813209930,6.8405,146.12,146.07,3.36900716]
[1750813210527,6.8405,146.12,146.1,6.841]
[1750813210833,6.8399,146.13,146.1,6.841]
[1750813211033,4.8711705,146.12,146.1,6.841]
[1750813213638,6.8418,146.09,146.05,6.8431]
[1750813213936,3.36900716,146.1,146.03,36.18]
[1750813214139,4.87552469,146.09,146.03,36.18]
[1750813214438,4.87552469,146.08,146.02,3.36900716]
[1750813214736,2.3541,146.09,146.04,6.8436]
[1750813215144,11.71772818,146.08,146.04,6.8436]
[1750813215340,6.8424,146.08,146.04,6.8436]
[1750813218537,6.8428,146.07,146.03,6.8441]
[1750813219342,6.8428,146.07,146.03,6.8439]
[1750813219841,6.8428,146.07,146.01,16.13766828]
[1750813220845,6.8428,146.07,146.01,12.76866112]
[1750813221034,6.8428,146.07,146.01,16.13766828]
[1750813221744,6.8428,146.07,146.04,6.8438]
[1750813222445,6.8432,146.06,146.04,6.8438]
[1750813223949,6.8432,146.06,146.03,6.8441]
[1750813224251,3.36900716,146.06,145.99,12.76866112]
[1750813224434,3.36900716,146.06,146.0,6.8453]
[1750813224639,6.8441,146.04,146.0,6.8453]
[1750813224838,3.36900716,146.06,145.99,12.76866112]
[1750813225045,4.86514153,146.05,145.99,6.846]
[1750813225247,6.8446,146.03,145.98,20.68116828]
[1750813225641,6.8446,146.03,145.98,7.91250716]
[1750813225846,41.89230716,146.07,145.98,7.91250716]
[1750813226150,4.86489379,146.06,146.02,3.36900716]
[1750813226448,43.0225,146.07,146.04,6.8436]
[1750813226646,36.18,146.07,146.02,3.36900716]
[1750813227041,43.0227,146.07,146.04,6.8436]
[1750813227345,36.18,146.07,146.04,6.8436]
[1750813227650,36.18,146.07,146.02,6.8445]
[1750813228150,39.54900716,146.07,146.01,6.8451]
[1750813228451,4.86454137,146.06,145.99,16.13766828]
[1750813228650,39.54900716,146.07,145.99,16.13766828]
[1750813228949,6.8444,146.03,146.0,6.8455]
[1750813229653,6.8444,146.03,146.01,6.8453]
[1750813229854,39.54900716,146.07,145.99,16.13766828]
[1750813230050,36.18,146.07,146.01,3.36900716]
[1750813230353,6.8431,146.06,146.03,6.844]
[1750813230652,36.18,146.07,146.03,6.844]
[1750813230952,6.843,146.06,146.03,6.844]
[1750813234042,6.843,146.06,146.04,6.8439]
[1750813234356,6.8434,146.05,146.0,16.13766828]
[1750813234650,6.8434,146.05,146.02,6.8446]
[1750813235957,6.844,146.04,146.01,6.845]
[1750813237657,6.8436,146.05,145.98,20.68116828]
[1750813237853,6.8436,146.05,146.0,3.36900716]
[1750813238243,6.8432,146.06,146.0,3.36900716]
[1750813238449,36.18,146.07,146.0,12.76866112]
[1750813238652,36.18,146.07,146.0,16.13766828]
[1750813238954,6.8437,146.05,146.02,6.8445]
[1750813239954,6.8439,146.04,146.02,6.8445]
[1750813240457,6.8436,146.05,146.02,6.8445]
[1750813242554,3.36900716,146.04,145.98,16.13766828]
[1750813242954,6.8453,146.01,145.98,10.21540716]
[1750813243256,6.8453,146.01,145.98,6.8464]
[1750813243960,6.845,146.02,145.99,6.8462]
[1750813244454,6.8455,146.01,145.98,6.8464]
[1750813246259,36.14,146.03,145.96,5.69220716]
[1750813247263,6.8454,146.01,145.98,6.8465]
[1750813247955,3.36900716,146.02,145.94,48.91321277]
[1750813248171,3.36900716,146.01,145.93,7.91070716]
[1750813248456,41.87450716,146.03,145.95,3.36900716]
[1750813248862,6.8453,146.01,145.97,6.847]
[1750813249565,6.8453,146.01,145.98,6.8466]
[1750813249760,6.845,146.02,145.97,3.36900716]
[1750813250366,6.8455,146.01,145.97,3.36900716]
[1750813251464,6.8455,146.01,145.98,6.8464]
[1750813251960,39.50900716,146.03,145.98,6.8464]
[1750813252165,39.50900716,146.03,145.97,6.8469]
[1750813252567,6.8456,146.01,145.95,39.50900716]
[1750813253556,6.8458,146.0,145.97,6.8469]
[1750813253756,6.8458,146.0,145.95,39.50900716]
[1750813254369,6.8455,146.01,145.97,6.8467]
[1750813255369,6.8455,146.01,145.98,6.8466]
[1750813256572,39.50900716,146.03,145.95,3.36900716]
[1750813257073,6.8458,146.0,145.97,6.8468]
[1750813257568,6.8458,146.0,145.95,3.36900716]
[1750813258766,6.8462,145.99,145.94,12.77321277]
[1750813258972,6.8462,145.99,145.95,3.36900716]
[1750813259272,6.8462,145.99,145.96,6.8473]
[1750813259571,6.8462,145.99,145.95,3.36900716]
[1750813260076,6.846,146.0,145.95,3.36900716]
[1750813260773,6.846,146.0,145.97,6.8469]
[1750813261070,6.8463,145.99,145.97,6.8469]
[1750813261470,39.50900716,146.03,145.97,6.8469]
[1750813261471,6.8459,146.0,145.97,6.8469]
[1750813262269,6.8455,146.01,145.95,3.36900716]
[1750813262670,6.8455,146.01,145.98,6.8463]
[1750813263573,6.8455,146.01,145.95,3.36900716]
[1750813263574,6.8455,146.01,145.97,3.36900716]
[1750813264374,6.8455,146.01,145.97,11.88048508]
[1750813264683,36.14,146.03,145.99,3.36900716]
[1750813265173,6.845,146.02,145.99,10.21480716]
[1750813266276,6.845,146.02,146.0,6.8456]
[1750813266783,42.9846,146.03,145.99,3.36900716]
[1750813267074,36.14,146.03,145.99,3.36900716]
[1750813267776,36.14,146.03,146.01,6.8451]
[1750813268475,42.9846,146.03,146.01,6.8451]
[1750813268975,36.14,146.03,146.02,6.8448]
[1750813269171,45.2236,146.06,146.01,3.36900716]
[1750813269375,45.2236,146.06,146.03,6.8439]
[1750813269774,45.2236,146.06,146.01,11.88048508]
[1750813269974,36.12,146.06,146.04,6.8436]
[1750813270980,42.963,146.06,146.04,6.8436]
[1750813271478,36.12,146.06,146.04,6.8436]
[1750813271881,36.12,146.06,146.03,6.8441]
[1750813272382,36.12,146.06,146.04,6.8438]
[1750813272575,42.9632,146.06,146.01,11.88048508]
[1750813273080,42.9632,146.06,146.03,6.8441]
[1750813276287,36.12,146.06,146.02,6.8446]
[1750813276479,39.48900716,146.06,146.0,8.51147792]
[1750813276873,4.87162454,146.05,146.02,6.8448]
[1750813277074,39.48900716,146.06,146.02,6.8448]
[1750813277273,4.87202259,146.05,146.02,6.8448]
[1750813277574,6.8438,146.05,146.02,6.8448]
[1750813278875,39.48900716,146.06,146.0,15.35707792]
[1750813279071,4.87296826,146.05,146.0,15.35707792]
[1750813279279,39.48900716,146.06,146.0,15.35707792]
[1750813279579,3.36900716,146.04,145.98,8.51147792]
[1750813279882,6.8456,146.01,145.97,15.35837792]
[1750813280076,42.9456,146.01,145.97,15.35837792]
[1750813281486,6.8458,146.0,145.97,15.35837792]
[1750813291500,42.9455,146.01,145.97,8.51147792]
[1750813291702,36.1,146.01,145.98,8.51147792]
[1750813292407,36.1,146.01,145.99,8.51147792]
[1750813294004,36.1,146.01,146.0,6.8458]
[1750813296410,36.1,146.01,145.99,6.846]
[1750813296606,36.04,146.06,146.0,8.51147792]
[1750813296807,4.86922322,146.05,146.02,3.36900716]
[1750813297010,6.8438,146.05,146.02,10.21370716]
[1750813297213,6.8438,146.05,146.02,3.36900716]
[1750813297410,36.04,146.06,146.02,3.36900716]
[1750813297609,36.04,146.06,146.03,6.844]
[1750813298116,6.8442,146.04,146.01,6.8451]
[1750813298315,36.04,146.06,145.99,3.36900716]
[1750813298509,8.24406033,146.05,146.0,6.8455]
[1750813298813,6.8447,146.03,146.0,6.8455]
[1750813299210,6.8447,146.03,146.0,15.36332584]
[1750813299717,6.845,146.02,146.0,15.36332584]
[1750813300817,6.845,146.02,146.0,6.8455]
[1750813301212,6.8445,146.03,146.0,6.8455]
[1750813302515,4.17398865,146.05,146.0,6.8455]
[1750813302918,3.36900716,146.04,145.99,15.36382584]
[1750813303111,3.36900716,146.04,145.99,8.51782584]
[1750813303312,7.54299581,146.04,145.98,8.51782584]
[1750813303515,3.36900716,146.04,145.98,8.51782584]
[1750813303813,41.63610716,146.06,146.0,8.51782584]
[1750813304316,6.8442,146.04,146.0,15.36312584]
[1750813304617,41.63610716,146.06,146.0,15.36312584]
[1750813305416,6.8441,146.04,146.0,11.886833]
[1750813305713,42.44157683,146.06,146.0,11.886833]
[1750813306019,6.844,146.04,146.01,6.845]
[1750813307515,6.8444,146.03,146.01,6.845]
[1750813307722,6.8444,146.03,146.0,15.36342584]
[1750813309318,6.8444,146.03,146.01,6.8453]
[1750813310018,6.8444,146.03,146.0,15.36332584]
[1750813310219,6.8449,146.02,146.0,15.36332584]
[1750813311818,6.8449,146.02,146.0,8.51782584]
[1750813314823,6.8449,146.02,145.99,15.36382584]
[1750813315215,6.8449,146.02,146.0,8.51782584]
[1750813315518,6.8446,146.03,146.0,15.36352584]
[1750813316616,38.2671,146.06,146.0,8.51782584]
[1750813316822,36.04,146.06,146.02,3.36900716]
[1750813317119,36.04,146.06,146.02,11.886833]
[1750813317624,36.04,146.06,146.04,6.8438]
[1750813318926,42.8832,146.06,146.03,15.36192584]
[1750813319126,36.04,146.06,146.03,15.36192584]
[1750813319328,6.8437,146.05,146.03,8.51782584]
[1750813319521,36.04,146.06,146.03,8.51782584]
[1750813319726,39.40900716,146.06,146.01,8.51782584]
[1750813319929,6.8436,146.05,146.02,6.8448]
[1750813320129,39.40900716,146.06,146.01,8.51782584]
[1750813320625,3.36900716,146.04,146.0,8.51782584]
[1750813321020,6.8451,146.02,146.0,8.51782584]
[1750813321430,43.4451,146.02,146.0,8.51782584]
[1750813321822,36.6,146.02,146.0,15.36352584]
[1750813322833,36.6,146.02,146.01,6.8453]
[1750813323536,36.6,146.02,146.0,15.36332584]
[1750813324332,36.6,146.05,146.0,8.51782584]
[1750813324931,6.8439,146.04,146.01,6.845]
[1750813325632,43.4435,146.05,146.02,6.8446]
[1750813325835,36.6,146.05,146.01,3.36900716]
[1750813326037,36.6,146.05,146.01,11.886833]
[1750813326238,43.4437,146.05,146.02,6.8445]
[1750813326629,43.4437,146.05,146.02,15.36232584]
[1750813327031,6.8441,146.04,146.02,8.51782584]
[1750813327236,6.8441,146.04,146.01,6.8451]
[1750813327440,6.8441,146.04,146.0,8.51782584]
[1750813328033,6.8441,146.04,146.01,6.8452]
[1750813328739,43.4436,146.05,146.02,6.8446]
[1750813328939,43.4436,146.05,146.01,8.51782584]
[1750813329237,36.6,146.05,146.03,6.8441]
[1750813329437,36.6,146.05,146.01,11.886833]
[1750813329639,36.6,146.05,146.02,8.51782584]
[1750813329839,36.6,146.05,146.03,6.8441]
[1750813330138,43.4435,146.05,146.02,8.51782584]
[1750813330339,36.6,146.05,146.02,8.51782584]
[1750813330635,40.77788153,146.08,146.03,3.36900716]
[1750813330839,36.6,146.08,146.05,3.36900716]
[1750813331139,36.6,146.08,146.06,6.8427]
[1750813332134,43.4421,146.08,146.06,6.8427]
[1750813332340,36.6,146.08,146.07,6.8425]
[1750813333841,36.6,146.08,146.06,6.8426]
[1750813335436,4.17398868,146.1,146.05,3.36900716]
[1750813335747,4.17398868,146.1,146.07,3.36900716]
[1750813336136,4.17398868,146.1,146.09,6.8415]
[1750813336337,4.17398868,146.1,146.09,10.21050716]
[1750813337445,4.17398868,146.1,146.09,6.8415]
[1750813340641,4.17398868,146.1,146.05,16.14574592]
[1750813340840,4.17398868,146.1,146.05,3.36900716]
[1750813341240,6.8417,146.09,146.06,6.8426]
[1750813341440,4.17398868,146.1,146.06,6.8426]
[1750813341640,40.75398868,146.1,146.05,3.36900716]
[1750813342243,6.8423,146.08,146.06,6.8429]
[1750813342642,40.75398868,146.1,146.04,3.36900716]
[1750813342846,3.36900716,146.09,146.02,3.36900716]
[1750813343047,40.75398868,146.1,146.01,19.48753876]
[1750813343048,44.12299584,146.1,146.01,6.7108]
[1750813343249,6.8427,146.07,146.02,3.36900716]
[1750813344348,6.8427,146.07,146.04,6.8435]
[1750813345242,6.8422,146.08,146.05,6.8433]
[1750813346145,40.75398868,146.1,146.04,3.36900716]
[1750813346345,4.17398868,146.1,146.06,3.36900716]
[1750813347151,4.17398868,146.1,146.09,6.8415]
[1750813349458,4.17398868,146.1,146.08,6.8418]
[1750813352258,4.17398868,146.1,146.08,3.36900716]
[1750813353059,4.17398868,146.1,146.08,10.21060716]
[1750813353455,4.17398868,146.1,146.08,6.8416]
[1750813355861,11.01508868,146.1,146.08,6.8416]
[1750813356366,11.01508868,146.1,146.07,6.8422]
[1750813356557,4.17398868,146.1,146.06,3.36900716]
[1750813356758,4.17398868,146.1,146.04,48.42554683]
[1750813356953,37.04,146.09,146.03,8.47653967]
[1750813357159,3.36900716,146.08,146.02,8.47653967]
[1750813357359,3.36900716,146.08,146.03,6.8441]
[1750813357571,6.8429,146.07,146.02,8.47653967]
[1750813357866,6.8429,146.07,146.01,171.15290744]
[1750813358062,6.8431,146.06,146.03,6.8441]
[1750813359568,6.8437,146.05,146.02,6.8448]
[1750813359967,6.8437,146.05,146.01,45.51653967]
[1750813360167,6.8432,146.06,146.03,6.8443]
[1750813361167,3.36900716,146.07,146.01,8.47653967]
[1750813361465,3.36900716,146.07,145.99,12.71480951]
[1750813361466,3.36900716,146.07,145.99,8.47653967]
[1750813361661,6.8446,146.03,146.0,6.8455]
[1750813362556,37.04,146.05,145.99,8.47653967]
[1750813362762,37.04,146.05,146.0,11.84554683]
[1750813363364,43.8834,146.05,146.01,6.845]
[1750813363769,37.04,146.05,146.03,6.8441]
[1750813364374,37.04,146.05,146.04,6.8439]
[1750813365469,37.04,146.08,146.05,6.8433]
[1750813365664,37.04,146.08,146.02,11.84554683]
[1750813365869,37.04,146.08,146.04,3.36900716]
[1750813367881,37.04,146.08,146.06,6.8426]
[1750813369367,37.04,146.08,146.07,6.8425]
[1750813369570,43.882,146.08,146.04,3.36900716]
[1750813369772,43.882,146.08,146.04,11.85977738]
[1750813369971,37.04,146.08,146.06,6.8429]
[1750813371284,43.8821,146.08,146.06,6.8429]
[1750813371480,37.04,146.08,146.06,6.8429]
[1750813372782,43.8821,146.08,146.06,6.8429]
[1750813372979,37.04,146.08,146.07,6.8425]
[1750813373284,4.17398868,146.1,146.06,3.36900716]
[1750813373578,4.17398868,146.1,146.09,6.8415]
[1750813376074,4.17398868,146.1,146.09,15.33227022]
[1750813376275,4.17398868,146.1,146.09,6.8415]
[1750813376781,4.17398868,146.1,146.09,15.33227022]
[1750813376988,594.68900716,146.18,146.14,6.8389]
[1750813376989,37.04,146.17,146.14,6.8389]
[1750813377289,37.04,146.17,146.12,3.36900716]
[1750813377585,37.04,146.17,146.14,6.8389]
[1750813377770,43.878,146.17,146.14,6.8389]
[1750813377979,591.14,146.25,146.14,3.36900716]
[1750813378176,6.8379,146.17,146.12,11.85430691]
[1750813378485,37.04,146.22,146.15,6.8385]
[1750813378683,3.36900716,146.2,146.15,6.8385]
[1750813379278,6.8378,146.17,146.15,6.8385]
[1750813379476,37.04,146.17,146.15,6.8385]
[1750813379883,37.04,146.17,146.11,8.48529975]
[1750813380184,37.04,146.17,146.13,3.36900716]
[1750813380573,3.36900716,146.16,146.11,8.48529975]
[1750813380777,3.36900716,146.16,146.1,8.48529975]
[1750813380975,3.36900716,146.14,146.09,15.32639975]
[1750813381184,37.04,146.13,146.07,3.36900716]
[1750813381682,37.04,146.13,146.08,6.8417]
[1750813381981,3.36900716,146.12,146.05,3.36900716]
[1750813382187,3.36900716,146.1,146.02,49.81615533]
[1750813382381,37.08,146.09,146.02,37.08]
[1750813382589,40.44900716,146.09,146.02,40.44900716]
[1750813382782,6.8423,146.08,146.02,40.44900716]
[1750813383207,6.8423,146.08,146.02,3.36900716]
[1750813383487,6.8423,146.08,146.04,6.8436]
[1750813383689,6.8426,146.07,146.04,6.8436]
[1750813384087,40.44900716,146.09,146.04,6.8436]
[1750813384389,6.8423,146.08,146.05,6.8434]
[1750813384593,37.08,146.09,146.04,3.36900716]
[1750813384891,43.9219,146.09,146.04,3.36900716]
[1750813385084,37.08,146.09,146.04,3.36900716]
[1750813385385,43.9216,146.09,146.06,6.8428]
[1750813386180,37.08,146.09,146.04,11.85903842]
[1750813386380,37.08,146.09,146.04,3.36900716]
[1750813387089,43.9218,146.09,146.06,6.8429]
[1750813387492,37.08,146.09,146.06,6.8429]
[1750813387989,43.9217,146.09,146.06,6.8429]
[1750813388378,37.08,146.09,146.07,6.8424]